Cogmind - Beta 13 @@@ ROGUE MODE // 2024.05.04 @ 14:58:38 Player: Vox Result: Destroyed by XV-L9O(z) with Makeshift Axe Performance ------------- Evolutions (1) 500 Regions Visited (5) 1000 Robots Destroyed (49) 245 Value Destroyed (1077) 1077 Prototype IDs (2) 40 Alien Tech Used (0) 0 Bonus (28) 28 TOTAL SCORE: 2890 Bonus ------- Follower Combat Kills 39 Friendly Fire -11 Cogmind --------- Core Integrity 0/400 Matter 265/300 Energy 49/265 System Corruption 2% Temperature Cool (27) Movement Treading (160) Location -7/Zion Parts ------- > --- POWER (1) -------- Improved Ion Engine > --- PROPULSION (2) --- Light Treads Light Treads > --- UTILITY (4) ------ Cooling System Large Storage Unit Signal Interpreter > --- WEAPON (2) ------- Proton Missile Launcher > --- INVENTORY (15) --- Light Treads Cooling System Large Battery (200) Utility Shielding Small Laser Storm Laser Heavy Particle Cannon Peak State ------------ > --- POWER ------------ Heavy Ion Engine > --- PROPULSION ------- Light Treads Light Treads > --- UTILITY ---------- Cooling System Large Storage Unit Signal Interpreter Weapon Shielding > --- WEAPON ----------- Small Laser Improved Medium Laser > --- INVENTORY -------- Improved Ion Engine Light Treads Light Treads Wheel Cooling System Large Battery Utility Shielding Medium Armor Plating Small Laser Storm Laser Heavy Particle Cannon Proton Missile Launcher [Rating: 18] Favorites ----------- Power Heavy Ion Engine Engine Heavy Ion Engine Propulsion Light Treads Treads Light Treads Wheel Wheel Utility Signal Interpreter Device Improved Heat Sink Storage Large Storage Unit Processor Signal Interpreter Protection Weapon Shielding Weapon Small Laser Energy Gun Small Laser Ballistic Gun Light Assault Rifle Launcher Proton Missile Launcher Build | -11 -10 -10 -9 -9 -7 ------- Run | Yrd Mat Min Mat Min Zio Slots Evolved 2 | . . . 2 . . Power . | . . . . . . Propulsion . | . . . . . . Utility 2 | . . . 2 . . Weapon . | . . . . . . Parts Attached 42 | 7 11 . 13 3 8 Power 9 | 1 3 . 3 . 2 Engine 9 | 1 3 . 3 . 2 Core . | . . . . . . Reactor . | . . . . . . Propulsion 11 | 2 1 . 3 2 3 Treads 10 | 2 1 . 3 2 2 Leg . | . . . . . . Wheel 1 | . . . . . 1 Hover . | . . . . . . Flight . | . . . . . . Utility 12 | 2 3 . 5 . 2 Device 3 | . 1 . 1 . 1 Storage 5 | 2 1 . 2 . . Processor 1 | . 1 . . . . Hackware . | . . . . . . Protection 3 | . . . 2 . 1 Artifact . | . . . . . . Weapon 10 | 2 4 . 2 1 1 Energy Gun 8 | 2 3 . 2 1 . Energy Cannon . | . . . . . . Ballistic Gun 1 | . 1 . . . . Ballistic Cannon . | . . . . . . Launcher 1 | . . . . . 1 Special Weapon . | . . . . . . Impact Weapon . | . . . . . . Slashing Weapon . | . . . . . . Piercing Weapon . | . . . . . . Special Melee Weapon . | . . . . . . Unidentified Prototypes 2 | . . . 2 . . Parts Lost 11 | . 4 . . . 7 Power 2 | . 1 . . . 1 Propulsion 3 | . 1 . . . 2 Utility 2 | . . . . . 2 Weapon 4 | . 2 . . . 2 Highest Loss Streak 7 | . 2 . . . 7 To Critical Strikes . | . . . . . . Average Slot Usage (%) 98 | . 98 100 97 100 97 Engine 11 | . 13 14 10 11 11 Treads 23 | . 28 28 21 22 20 Device 9 | . 5 . 11 11 11 Storage 12 | . 16 14 11 11 11 Processor 9 | . 5 14 11 11 11 Protection 6 | . . . 9 11 10 Energy Gun 22 | . 26 28 21 22 20 Naked Turns . | . . . . . . Heaviest Build 74 | 16 21 18 74 33 37 Greatest Support 40 | 40 40 40 40 40 40 Greatest Overweight (x) 3 | . . . 1 . 3 Average Overweight (x) . | . . . . . . Largest Inventory Capacity 20 | 8 10 10 20 15 15 Average Capacity 13 | 7 9 10 15 15 15 Most Carried 16 | 7 10 10 16 15 15 Average Carried 12 | 5 9 10 13 14 14 Final Capacity 15 | 8 10 10 15 15 15 Final Carried 15 | 7 10 10 15 15 10 Class Distribution -------------------- 57% | Mutant 42% | Scavenger-Mutant Dominant Class ---------------- Mutant | -10/Materials Mutant | -10/Mines Scavenger-Mutant | -9/Materials Scavenger-Mutant | -9/Mines Scavenger-Mutant | -7/Zion Resources | -11 -10 -10 -9 -9 -7 ----------- Run | Yrd Mat Min Mat Min Zio Matter Collected 557 | 270 107 . 130 30 20 Remotely . | . . . . . . Salvage Created 1794 | 116 690 . 663 325 . Parts 88 | 3 40 . 32 13 . Haulers Intercepted 2 | . 1 . 1 . . Recyclers Shooed 2 | . 1 . 1 . . Parts Field Recycled . | . . . . . . Retrieved Matter . | . . . . . . Parts Self-Destructed . | . . . . . . Prevented . | . . . . . . Kills | -11 -10 -10 -9 -9 -7 ------- Run | Yrd Mat Min Mat Min Zio Combat Hostiles Destroyed 34 | . 18 . 10 6 . Guns 31 | . 16 . 9 6 . AOE 1 | . 1 . . . . Classes Destroyed 8 | 2 4 . 1 1 . Worker 4 | 1 3 . . . . Hauler 2 | . 1 . 1 . . Recycler 5 | 1 . . 2 2 . Watcher 4 | . 2 . 2 . . Swarmer 11 | . 6 . 1 4 . Grunt 17 | . 12 . 4 1 . Brawler 1 | . . . . 1 . Sentry 5 | . . . 5 . . Best Kill Streak 6 | 1 6 . 4 4 . Combat Bots Only 6 | . 6 . 2 4 . Max Kills in Single Turn 2 | 1 2 . 1 2 . Gunslinging 1 | . . . . 1 . Exploded 1 | . 1 . . . . Melee . | . . . . . . Uniques/NPCs Destroyed . | . . . . . . Combat | -11 -10 -10 -9 -9 -7 -------- Run | Yrd Mat Min Mat Min Zio Hostile Shots Fired 307 | . 67 . 36 69 135 Missed 96 | . 11 . 10 22 53 Damage Taken 2557 | . 731 . 347 382 1097 Core 545 | . 140 . 85 54 266 Absorbed by Shields . | . . . . . . Redirected to Shielding 52 | . . . 11 18 23 Regen/Repaired (Parts) 53 | . 53 . . . . Core Remaining (%) 72 | 100 . 44 . . . Volleys Fired 121 | 5 59 . 39 17 1 Largest 2 | 2 2 . 2 2 2 Hottest 106 | 80 90 . 106 96 96 Shots Fired 237 | 10 117 . 74 34 2 Gun 237 | 10 117 . 74 34 2 Cannon . | . . . . . . Launcher . | . . . . . . Special . | . . . . . . Kinetic 7 | . 7 . . . . Thermal 217 | 5 102 . 74 34 2 Explosive . | . . . . . . Electromagnetic 13 | 5 8 . . . . Robot Hit Streak 13 | 2 13 . 10 6 . Robot Miss Streak 4 | 1 3 . 4 3 . Penetration Max . | . . . . . . Secondary Targets 3 | . 2 . . 1 . Max Gunslinging Chain 1 | . 1 . . 1 . Shots Hit Robots 159 | 6 82 . 52 19 . Core Hits 73 | 3 36 . 25 9 . Critical Kills . | . . . . . . Critical Parts Destroyed . | . . . . . . Critical Strikes 13 | . 9 . 4 . . Burn 13 | . 9 . 4 . . Melee Attacks . | . . . . . . Impact . | . . . . . . Slashing . | . . . . . . Piercing . | . . . . . . Sneak Attacks . | . . . . . . Combat Hostiles . | . . . . . . Follow-up Attacks . | . . . . . . Damage Inflicted 2225 | 84 1099 . 737 294 11 Guns 2139 | 84 1015 . 737 292 11 Cannons . | . . . . . . Explosions 78 | . 78 . . . . Melee . | . . . . . . Ramming 8 | . 6 . . 2 . Kinetic 31 | . 31 . . . . Thermal 2059 | 42 977 . 737 292 11 Explosive . | . . . . . . Electromagnetic 127 | 42 85 . . . . Impact . | . . . . . . Slashing . | . . . . . . Piercing . | . . . . . . Highest Corruption 2 | . . . . . 2 Average Corruption 2 | . . . . . 2 Corruption Purged . | . . . . . . Corruption Blocked . | . . . . . . Effects 3 | . . . . . 3 Heat Flow Errors 3 | . . . . . 3 Overload Shots . | . . . . . . Overflow Damage . | . . . . . . Projectiles . | . . . . . . Explosions . | . . . . . . Melee . | . . . . . . Knockbacks . | . . . . . . Impact . | . . . . . . Kinetic . | . . . . . . Secondary . | . . . . . . Self-Inflicted Damage 40 | . 40 . . . . Shots 1 | . 1 . . . . Rammed 2 | . 1 . . 1 . Targets Rammed 3 | . 2 . . 1 . Kicked . | . . . . . . Crushed 1 | . 1 . . . . Highest Temperature 240 | 36 217 . 33 2 240 Average Temperature 48 | 19 58 . 12 2 92 Received Heat Transfer 738 | . 249 . 147 18 324 Siege Activations . | . . . . . . Robots Corrupted . | . . . . . . Combat Hostiles . | . . . . . . Parts Fried 1 | . 1 . . . . Impact Corruptions . | . . . . . . Robots Melted 3 | . 2 . 1 . . Combat Hostiles 2 | . 1 . 1 . . Parts Melted 12 | . 7 . 5 . . Heat Transferred 5928 | 100 3083 . 2089 631 25 Parts Sabotaged . | . . . . . . Parts Stolen . | . . . . . . Parts Stripped . | . . . . . . Power Chain Reactions 1 | . 1 . . . . Alert | -11 -10 -10 -9 -9 -7 ------- Run | Yrd Mat Min Mat Min Zio Peak Influence 228 | 10 228 57 218 205 . Initial 57 | . 6 57 22 25 . Average 83 | 2 72 57 99 87 . Maximum Alert Level 1 | . 1 . 1 1 . Low Security (%) 96 | 100 98 100 95 95 . Level 1 3 | . 1 . 4 4 . Level 2 . | . . . . . . Level 3 . | . . . . . . Level 4 . | . . . . . . Level 5 . | . . . . . . High Security . | . . . . . . Max Security . | . . . . . . Squads Dispatched 8 | . 6 . 2 . . Investigation 5 | . 4 . 1 . . Extermination . | . . . . . . Reinforcement 3 | . 2 . 1 . . Assault . | . . . . . . Garrison . | . . . . . . Intercept . | . . . . . . Searches Triggered . | . . . . . . Construction Impeded . | . . . . . . Haulers Reinforced . | . . . . . . Active Scanning Responses . | . . . . . . Cargo Convoy Interrupts . | . . . . . . Stealth | -11 -10 -10 -9 -9 -7 --------- Run | Yrd Mat Min Mat Min Zio Distress Signals 4 | . 2 . 2 . . Communications Jammed . | . . . . . . Distress Signals . | . . . . . . Times Spotted 79 | . 26 . 21 17 15 Peak Tracking Total 15 | . 3 . 4 8 15 Tactical Retreats 6 | . 2 . 2 1 1 Traps | -11 -10 -10 -9 -9 -7 ------- Run | Yrd Mat Min Mat Min Zio Traps Triggered 3 | . 2 . 1 . . Indirectly . | . . . . . . Trap Hack Attempts . | . . . . . . Triggered . | . . . . . . Disarmed . | . . . . . . Reprogrammed . | . . . . . . Reused . | . . . . . . Traps Extracted . | . . . . . . Installed . | . . . . . . Triggered . | . . . . . . Machines | -11 -10 -10 -9 -9 -7 ---------- Run | Yrd Mat Min Mat Min Zio Machines Disabled . | . . . . . . Max in Single Turn . | . . . . . . Machines Repaired . | . . . . . . Machines Dismantled . | . . . . . . Machines Sabotaged . | . . . . . . Overloaded Fab Kills . | . . . . . . Hacking | -11 -10 -10 -9 -9 -7 --------- Run | Yrd Mat Min Mat Min Zio Machines Accessed 9 | . 4 . 5 . . Terminals 8 | . 3 . 5 . . Fabricators . | . . . . . . Repair Stations 1 | . 1 . . . . Recycling Units . | . . . . . . Scanalyzers . | . . . . . . Garrison Access . | . . . . . . Total Hacks 30 | . 16 . 14 . . Successful 18 | . 8 . 10 . . Failed 12 | . 8 . 4 . . Catastrophic 1 | . . . 1 . . Database Lockouts . | . . . . . . Manual 19 | . 10 . 9 . . Terminals 27 | . 13 . 14 . . Fabricators . | . . . . . . Repair Stations 3 | . 3 . . . . Recycling Units . | . . . . . . Scanalyzers . | . . . . . . Garrison Access . | . . . . . . Terminal Hacks 9 | . 3 . 6 . . Robot Analysis 5 | . 2 . 3 . . Terminal Index 1 | . . . 1 . . Unreport Threat 1 | . 1 . . . . Locate Traps 1 | . . . 1 . . Zone Layout 1 | . . . 1 . . Fabricator Hacks . | . . . . . . Repair Station Hacks 2 | . 2 . . . . Scan Component 1 | . 1 . . . . Repair 1 | . 1 . . . . Recycling Unit Hacks . | . . . . . . Scanalyzer . | . . . . . . Garrison Access Hacks . | . . . . . . Unauthorized Hacks 7 | . 3 . 4 . . Terminals 6 | . 2 . 4 . . Track 1 | . . . 1 . . Botnet 5 | . 2 . 3 . . Fabricators . | . . . . . . Repair Stations 1 | . 1 . . . . Mechanics 1 | . 1 . . . . Recycling Units . | . . . . . . Scanalyzers . | . . . . . . Garrison Access . | . . . . . . Data Cores Recovered . | . . . . . . Used . | . . . . . . Hacking Detections 8 | . 4 . 4 . . Full Trace Events 3 | . 2 . 1 . . Feedback Events . | . . . . . . Feedback Blocked . | . . . . . . Robot Schematics Acquired 3 | . . . . . 3 Robots Built . | . . . . . . Authchips . | . . . . . . Time . | . . . . . . Total Robot Build Rating . | . . . . . . Part Schematics Acquired 14 | . . . . . 14 Parts Built . | . . . . . . Authchips . | . . . . . . Time . | . . . . . . Total Part Build Rating . | . . . . . . Parts Repaired 1 | . 1 . . . . Time 26 | . 26 . . . . Parts Recycled . | . . . . . . Recycled Matter . | . . . . . . Retrieved Matter . | . . . . . . Retrieved Components . | . . . . . . Parts Scanalyzed . | . . . . . . Part Schematics Acquired . | . . . . . . Parts Damaged . | . . . . . . Bothacking | -11 -10 -10 -9 -9 -7 ------------ Run | Yrd Mat Min Mat Min Zio Used RIF Installer . | . . . . . . Robots Hacked . | . . . . . . Non-combat . | . . . . . . Combat . | . . . . . . Robot Hacks Applied . | . . . . . . Relay Couplers Released . | . . . . . . Fabnet Peak Effective % . | . . . . . . Robots Rewired . | . . . . . . Allies Hacked . | . . . . . . Hacks Repelled . | . . . . . . Allies | -11 -10 -10 -9 -9 -7 -------- Run | Yrd Mat Min Mat Min Zio Total Allies 1 | . . 1 . . . Largest Group 1 | . . 1 1 . . Highest-Rated Group 31 | . . 31 31 . . Highest-Rated Ally 31 | . . 31 31 . . Total Orders . | . . . . . . Ally Attacks 10 | . . . 10 . . Total Damage 126 | . . . 126 . . Kills 3 | . . . 3 . . Allies Corrupted . | . . . . . . Allies Melted . | . . . . . . Intel | -11 -10 -10 -9 -9 -7 ------- Run | Yrd Mat Min Mat Min Zio Robot Analysis Total 5 | . 2 . 3 . . Derelict Logs Recovered 4 | . . . . 2 2 Drone Launches . | . . . . . . Drone Recoveries . | . . . . . . Exploration | -11 -10 -10 -9 -9 -7 ------------- Run | Yrd Mat Min Mat Min Zio Turns Passed 3559 | 119 1140 29 1264 333 674 Spaces Moved 1737 | 57 511 19 571 162 417 Core 4 | 4 . . . . . Treads 1690 | 53 511 19 571 162 374 Legs . | . . . . . . Wheels 43 | . . . . . 43 Hover . | . . . . . . Flight . | . . . . . . Fastest Speed 50 | 50 160 160 160 160 110 Average Speed 164 | 152 160 160 177 160 156 Slowest Speed 240 | 160 160 160 240 160 160 Overloaded Moves . | . . . . . . Propulsion Burnouts . | . . . . . . Robots Hopped . | . . . . . . Cave-ins Triggered . | . . . . . . Exploration Rate (%) 36 | 5 83 11 38 30 49 Regions Visited 5 Branch Regions 3 Pre-discovered Areas 1 | . . . . . 1 Known Exits Taken 4 | . 1 1 1 1 . Unknown Exits Taken 1 | 1 . . . . . Scrap Searched 5 | . . 1 . 1 3 Spaces Dug . | . . . . . . Terrain Destroyed 4 | . 4 . . . . Melee . | . . . . . . Projectile . | . . . . . . AOE 4 | . 4 . . . . Terrain Rammed . | . . . . . . Walls Destroyed . | . . . . . . Machines Disabled . | . . . . . . Actions | -11 -10 -10 -9 -9 -7 --------- Run | Yrd Mat Min Mat Min Zio Total 2209 | 76 719 18 755 202 439 Wait 235 | . 117 . 100 16 2 Move 1732 | 56 510 18 570 161 417 Hop . | . . . . . . Pick Up 40 | 8 11 . 16 1 4 Fast Attach 15 | 6 3 . 6 . . Attach 14 | 1 4 . 4 . 5 Detach 4 | . 1 . 3 . . Swap 13 | . 4 . 3 3 3 Drop 32 | . 8 . 14 3 7 Fire 121 | 5 59 . 39 17 1 Melee . | . . . . . . Ram . | . . . . . . Kick . | . . . . . . Crush 3 | . 2 . . 1 . Escape Stasis . | . . . . . . Rewire . | . . . . . . Trap . | . . . . . . Miscellaneous . | . . . . . . Route ------- -11/Scrapyard -10/Materials (discovered 3 exits: *Mat x2 / *Min) -10/Mines -9/Materials (discovered 2 exits: *Min / *Sto) -9/Mines (discovered 3 exits: *Mat x2 / *Zio) -7/Zion History --------- Turn | Location | Event 23 | -11/Scrapyard | Discovered new exit (range 16) 120 | -11/Scrapyard | Entered Materials 306 | -10/Materials | Build established: Mutant 821 | -10/Materials | Discovered new exit (range 4) 829 | -10/Materials | Identified exit to Materials 914 | -10/Materials | Repaired Ion Engine 1031 | -10/Materials | Core integrity fell below 50% 1135 | -10/Materials | Discovered exit to Materials (range 7) 1156 | -10/Materials | Discovered new exit (range 16) 1187 | -10/Materials | Identified exit to Mines 1260 | -10/Materials | Entered Mines 1263 | -10/Mines | Received a Mining Laser from a helpful Derelict 1275 | -10/Mines | Discovered exit to Materials (range 10) 1277 | -10/Mines | Assembled infested the area 1289 | -10/Mines | Entered Materials 1289 | -9/Materials | Accompanied by 1 ally 1289 | -9/Materials | Evolved 2 slots: Utility x2 1345 | -9/Materials | Discovered new exit (range 6) 1358 | -9/Materials | Identified exit to Storage 1548 | -9/Materials | Discovered new exit (range 12) 1572 | -9/Materials | Identified exit to Mines 1719 | -9/Materials | Build established: Scavenger-Mutant 2047 | -9/Materials | Build established: Mutant 2547 | -9/Materials | Build established: Scavenger-Mutant 2553 | -9/Materials | Entered Mines 2568 | -9/Mines | Identified exit to Materials 2621 | -9/Mines | Learned location of 1 exit from Materials 2658 | -9/Mines | Discovered exit to Materials (range 7) 2659 | -9/Mines | A Derelict revealed a hidden shortcut to a safe place 2720 | -9/Mines | Identified exit to Zion 2886 | -9/Mines | Entered Zion 2987 | -7/Zion | Learned Factory repair station intel 3011 | -7/Zion | Learned Factory stockpile data 3029 | -7/Zion | Learned location of Data Miner (-6) 3045 | -7/Zion | Learned 8 Factory zone layouts 3198 | -7/Zion | Received a visual enhancement algorithm 3374 | -7/Zion | Found Prototype Energy Gun 3484 | -7/Zion | Attacked by Zionites 3537 | -7/Zion | Core integrity fell below 50% 3559 | -7/Zion | Core integrity fell below 20% 3560 | -7/Zion | Destroyed by XV-L9O(z) with Makeshift Axe Last Messages --------------- 03536_ TD-3TI(z) pulls a Mak. Shrapnel Gun out of the Twisted Machinery. 03537_ 5K-HD6(z) pulls a Mak. Shrapnel Gun out of the Twisted Machinery. 03537_ Imp. Medium Laser destroyed. 03542_ Critical hit (Burn: +37). 03546_ System corrupted: Heat flow error (+161). 03550_ N4-KK0(z) heat short circuits Mak. Leg. 03550_ Hvy. Ion Engine destroyed. 03550_ Wheel destroyed. 03554_ Critical hit (Burn: +37). 03555_ 8C-CPE(z) pulls a Mak. Laser out of the Twisted Machinery. 03556_ N4-KK0(z) overheating. 03556_ Med. Armor Plating destroyed. 03559_ OR-TDA(z) destroyed. 03560_ N4-KK0(z) heat damages Mak. Laser, Lgt. Deuterium Engine, Broken Mak. Leg. 03560_ Critical hit (Burn: +37). 03560_ N4-KK0(z) overheating. Map ----- +----------------------------------------------------+ | ?????????????????????????????????????????????????? | | ?????????????????????????????????????????????????? | | ?????????????????????????????????????????????????? | | ?????????????????????????????????????????????????? | | ?????????????????????????????????????????????????? | | ?????????????????????????????????????????????????? | | ??????????????????????????#######????????????????? | | ??????###?????????????????#"""""#????????????????? | | ?????##"####??????????????#" "#????????????????? | | ????##"""""##?????????????## ##????????????????? | | #####"""""""#?????##""???## X#????????????????? | | """#"" ""##????##""""##"# ##???????????????? | | """"" ""#????#""" """"#" #####??????????## | | "" ""#????""" """""" #"#??????????#" | | "#????##"" """"" #"#????????###" | | "##???#"" """ ##????????#"#" | | """ ""#???##"" "" #####????#""" | | """" "##???#""""""""" #"###?###"" | | """" "######""#""""""" """"###""" | | """"" ""#"##"""""#####"" "" """""#""" | | "#"#" """#"""" ""#"#""" """""" ""#"" | | #""" """" ""###"" """ """" | | ##"" """" """"" """ "##"" | | " """ "z """ ""#""""" | | " """ z z """" """""""""" | | " """" """z z*z@ """ """" """##""""" | | " """"" z %z """ """ """""" "" | | "" " | | "" z | | "" zz "" | | "" "" #""" ""z """""#"#""""" /"" | | "" """""""""""""""""""""""""" ! """ | | " """"""#"""""##"#"#""""""" %""" "" | | " ""#######"""##########""" !=""" "" | | "" "##?????#####????????###"" """ "" | | "" "#?????????????????????#""" """ "" | | "" """#????????????????????##"" """ | | "" "" """""#????????????????????#""" """""" | | " """""##"##????????????????????##"" """"" | | " """###?##??????????????????????#"" """" | | " #"""#?????????????????????????#""" | | " ""#"##????????????????????????##"" | | " """""#"#???????????????????????#"" """ | | "" """"#???????????????????????#"" """"" | | "" """#???????????????????????"#" "#""" | | #" ""#???????????????????????""" ""#""" | | "" ""#"??????????????????????? "#"""" | | " """#??????????????????????? """"#" | | """##???????????????????????# """"#"" | | """#????????????????????????# " ?""#" | +----------------------------------------------------+ Best States ------------- Heat Dissipation 50 Energy Generation 14 Energy Capacity 280 Matter Stores 300 Matter Capacity 300 Sight Range 16 Terrain Scan Density 10 Armor Coverage 225 Weapon Shielding 33 Evasion (%) 40 Recoil Reduction 2 Item Schematics ----------------- Imp. Carbon-fiber Leg | -7/Zion | Archive Plasma Rifle | -7/Zion | Archive Mak. Axe | -7/Zion | Archive Nuclear Pulse Thruster | -7/Zion | Archive Component Analysis Suite | -7/Zion | Archive Imp. Weapon Cycler | -7/Zion | Archive Mak. Cloaking Device | -7/Zion | Archive Gauss Rifle | -7/Zion | Archive Imp. Core Shielding | -7/Zion | Archive Launcher Guidance Computer | -7/Zion | Archive Imp. Corruption Screen | -7/Zion | Archive Hvy. Flak Cannon | -7/Zion | Archive Gauss Cannon | -7/Zion | Archive Spear | -7/Zion | Archive Robot Schematics ------------------ Y-54 Guardian | -7/Zion | Archive K-01 Serf | -7/Zion | Archive B-48 Gladiator | -7/Zion | Archive Fabricated ------------ Nothing Alien Tech Used ----------------- None Achievements -------------- None Challenges ------------ None Game ------ Seed SniperXenonNullifier Manual? 0 Play Time 00:34:22 Cumulative 52.6 hours Start 2024.05.04 @ 11:42:59 End 2024.05.04 @ 14:58:38 Sessions 3 Manual Loads 0 Difficulty Rogue Special Mode None Game No. 39 Rogue 35 Adventurer 0 Explorer 4 Win Type - Total 1 Types 1/0/0/0/0/0/0/0/0 Lore% 37 Gallery% 44 Achievement% 45 Wizard Run 0 Options --------- Layout 1 ASCII 0 Keyboard 1 Movement Vi Keybinds 0 Fullscreen 2 Font 32/SmallcapsGlow Map View 50x35 Zoom Use 0% Tactical HUD 1 Map Filters NONE Filters NONE Steam 1 RUN: cee0356f-3642-4967-9c53-21051f37b6c9